Workbook

Sheet total Length
B1: Two Poles and a Guy Wire
B3: This DIGMath module lets you investigate
B4: the calculus problem of finding
B5: the shortest length of a guy wire
C6: staking two vertical poles
C7: to the ground.
A10: How tall is the first pole (3 -10 meters)? | F10: =D11 -> 10
D11: 10 | E11: =#REF!+D11*(#REF!-#REF!)/100 -> 
A14: How tall is the second pole (3 -10 meters)? | F14: =D15 -> 8
D15: 8 | E15: =#REF!+D15*(#REF!-#REF!)/100 -> 
A18: How far apart are the two poles (5 - 40 m)? | F18: =D19 -> 18 | L18: Select the point where the cables are staked: x = | Q18: =O20/100*D -> 8.28 | R18: meters
D19: 18 | E19: =#REF!+D19*(#REF!-#REF!)/100 -> 
O20: 46 | P20: =Sheet2!H7+O20*(Sheet2!H8-Sheet2!H7)/100 -> 8.28
M22: The length of the first cable is L1 = | Q22: =Sheet2!H32 -> 12.98300427 | R22: meters
M24: The length of the second cable is L2 = | Q24: =Sheet2!H33 -> 12.58882044 | R24: meters
M26: The total length of the cable is L = | Q26: =Sheet2!H34 -> 25.57182471 | R26: meters
A28: Click each item below for suggestions and investigations
C29: Item 1
C30: Item 2
C31: Item 3
A34: To access/download all the DIGMath Apps for Calculus
A35: Click this link: | C35: DIGMath for Calculus
A37: Created by: Sheldon P. Gordon & Florence S. Gordon
A38: Farmingdale State College NYIT
A39: Development of this module was supported by the
A40: NSF's Division of Undergraduate Education
A41: under grants DUE-0310123 and DUE-0442160.
M44: The graph of the function y = | P44: ="sqrt(" & TEXT(RR,"0") & "^2 + x^2) + sqrt(" & TEXT(s,"0") & "^2 +(" & TEXT(D,"0") & " - x)^2)" -> sqrt(10^2 + x^2) + sqrt(8^2 +(18 - x)^2)
M46: The value of the derivative L'(x) = | Q46: =Sheet2!I25 -> -0.13

Sheet Sheet2
B1: x | C1: f(x) | D1: f'(x)
A3: 0 | B3: 0.00 | C3: =SQRT(RR^2+x^2)+SQRT(s^2+(D-x)^2) -> 29.6977156 | D3: =(C4-C3)/dx -> -0.9040522747
A4: 1 | B4: =B3+dx -> 0.18 | C4: 29.53498619 | D4: -0.8845166839
A5: 2 | B5: 0.36 | C5: 29.37577319 | D5: -0.8649676569 | G5: delta x = | H5: =(xMax-xMin)/100 -> 0.18
A6: 3 | B6: 0.54 | C6: 29.22007901 | D6: -0.8454212134
A7: 4 | B7: 0.72 | C7: 29.06790319 | D7: -0.8258931138 | G7: xMin = | H7: 0
A8: 5 | B8: 0.90 | C8: 28.91924243 | D8: -0.8063987766 | G8: xMax = | H8: =D -> 18 | K8: Sketch
A9: 6 | B9: 1.08 | C9: 28.77409065 | D9: -0.7869531984
A10: 7 | B10: 1.26 | C10: 28.63243908 | D10: -0.7675708787 | K10: Pole 1 | L10: 0 | M10: 0
A11: 8 | B11: 1.44 | C11: 28.49427632 | D11: -0.7482657487 | G11: Point | L11: 0.05 | M11: =RR -> 10
A12: 9 | B12: 1.62 | C12: 28.35958849 | D12: -0.729051106 | G12: =1000-x0 -> 991.72 | H12: 0
A13: 10 | B13: 1.80 | C13: 28.22835929 | D13: -0.709939554
A14: 11 | B14: 1.98 | C14: 28.10057017 | D14: -0.6909429492 | G14: Horizontal Line | K14: Pole 2 | L14: =D -> 18 | M14: 0
A15: 12 | B15: 2.16 | C15: 27.97620044 | D15: -0.6720723536 | G15: 0 | H15: 0 | L15: =D -> 18 | M15: =s -> 8
A16: 13 | B16: 2.34 | C16: 27.85522741 | D16: -0.6533379944 | G16: =G12 -> 991.72 | H16: 0
A17: 14 | B17: 2.52 | C17: 27.73762657 | D17: -0.634749231 | K17: Line 1 | L17: 0 | M17: =RR -> 10
A18: 15 | B18: 2.70 | C18: 27.62337171 | D18: -0.6163145282 | G18: Diagnonal Line | L18: =x0 -> 8.28 | M18: 0
A19: 16 | B19: 2.88 | C19: 27.5124351 | D19: -0.5980414364 | G19: =G16 -> 991.72 | H19: 0
A20: 17 | B20: 3.06 | C20: 27.40478764 | D20: -0.5799365783 | G20: 1000 | H20: 200 | K20: Line 2 | L20: =x0 -> 8.28 | M20: 0
A21: 18 | B21: 3.24 | C21: 27.30039905 | D21: -0.5620056419 | L21: =D -> 18 | M21: =s -> 8
A22: 19 | B22: 3.42 | C22: 27.19923804 | D22: -0.5442533795
A23: 20 | B23: 3.60 | C23: 27.10127243 | D23: -0.526683612 | G23: Point on curve | K23: Line 3 | L23: 0 | M23: -0.2
A24: 21 | B24: 3.78 | C24: 27.00646938 | D24: -0.5092992381 | F24: x= | G24: =x0 -> 8.28 | H24: 0 | I24: 0 | L24: =x0-0.15 -> 8.13 | M24: -0.2
A25: 22 | B25: 3.96 | C25: 26.91479552 | D25: -0.4921022486 | G25: =x0 -> 8.28 | H25: =LOOKUP(G25,B3:B103,C3:C103) -> 25.57182471 | I25: =LOOKUP(G25,B3:B103,D3:D103) -> -0.1273610355
A26: 23 | B26: 4.14 | C26: 26.82621711 | D26: -0.475093744 | K26: Line 4 | L26: =x0+0.15 -> 8.43 | M26: -0.2
A27: 24 | B27: 4.32 | C27: 26.74070024 | D27: -0.4582739563 | L27: =D -> 18 | M27: -0.2
A28: 25 | B28: 4.50 | C28: 26.65821093 | D28: -0.4416422731
A29: 26 | B29: 4.68 | C29: 26.57871532 | D29: -0.4251972649
A30: 27 | B30: 4.86 | C30: 26.50217981 | D30: -0.4089367138
A31: 28 | B31: 5.04 | C31: 26.4285712 | D31: -0.3928576438
A32: 29 | B32: 5.22 | C32: 26.35785683 | D32: -0.3769563523 | G32: L1 = | H32: =SQRT(RR^2+x0^2) -> 12.983
A33: 30 | B33: 5.40 | C33: 26.29000468 | D33: -0.3612284424 | G33: L2 = | H33: =SQRT(s^2+(D-x0)^2) -> 12.58882044
A34: 31 | B34: 5.58 | C34: 26.22498356 | D34: -0.3456688548 | G34: sum = | H34: =SUM(H32:H33) -> 25.572
A35: 32 | B35: 5.76 | C35: =SQRT(RR^2+x^2)+SQRT(s^2+(D-x)^2) -> 26.16276317 | D35: =(C36-C35)/dx -> -0.3302719002
A36: 33 | B36: =B35+dx -> 5.94 | C36: 26.10331423 | D36: -0.3150312912
A37: 34 | B37: 6.12 | C37: 26.04660859 | D37: -0.2999401733
A38: 35 | B38: 6.30 | C38: 25.99261936 | D38: -0.2849911554
A39: 36 | B39: 6.48 | C39: 25.94132095 | D39: -0.270176339
A40: 37 | B40: 6.66 | C40: 25.89268921 | D40: -0.2554873463
A41: 38 | B41: 6.84 | C41: 25.84670149 | D41: -0.2409153468
A42: 39 | B42: 7.02 | C42: 25.80333673 | D42: -0.2264510831
A43: 40 | B43: 7.20 | C43: 25.76257553 | D43: -0.2120848949
A44: 41 | B44: 7.38 | C44: 25.72440025 | D44: -0.1978067413
A45: 42 | B45: 7.56 | C45: 25.68879504 | D45: -0.1836062228
A46: 43 | B46: 7.74 | C46: 25.65574592 | D46: -0.1694726008
A47: 44 | B47: 7.92 | C47: 25.62524085 | D47: -0.155394817
A48: 45 | B48: 8.10 | C48: 25.59726978 | D48: -0.1413615106
A49: 46 | B49: 8.28 | C49: 25.57182471 | D49: -0.1273610355
A50: 47 | B50: 8.46 | C50: 25.54889973 | D50: -0.1133814765
A51: 48 | B51: 8.64 | C51: 25.52849106 | D51: -0.09941066434
A52: 49 | B52: 8.82 | C52: 25.51059714 | D52: -0.08543619121
A53: 50 | B53: 9.00 | C53: 25.49521863 | D53: -0.07144542531
A54: 51 | B54: 9.18 | C54: 25.48235845 | D54: -0.05742552602
A55: 52 | B55: 9.36 | C55: 25.47202185 | D55: -0.04336345918
A56: 53 | B56: 9.54 | C56: 25.46421643 | D56: -0.02924601307
A57: 54 | B57: 9.72 | C57: 25.45895215 | D57: -0.01505981526
A58: 55 | B58: 9.90 | C58: 25.45624138 | D58: -0.0007913508257
A59: 56 | B59: 10.08 | C59: 25.45609894 | D59: 0.01357301797
A60: 57 | B60: 10.26 | C60: 25.45854208 | D60: 0.02804702993
A61: 58 | B61: 10.44 | C61: 25.46359055 | D61: 0.04264450095
A62: 59 | B62: 10.62 | C62: 25.47126656 | D62: 0.05737929733
A63: 60 | B63: 10.80 | C63: 25.48159483 | D63: 0.07226530593
A64: 61 | B64: 10.98 | C64: 25.49460259 | D64: 0.08731640099
A65: 62 | B65: 11.16 | C65: 25.51031954 | D65: 0.102546407
A66: 63 | B66: 11.34 | C66: 25.52877789 | D66: 0.1179690571
A67: 64 | B67: 11.52 | C67: =SQRT(RR^2+x^2)+SQRT(s^2+(D-x)^2) -> 25.55001232 | D67: =(C68-C67)/dx -> 0.1335979477
A68: 65 | B68: =B67+dx -> 11.70 | C68: 25.57405995 | D68: 0.1494464867
A69: 66 | B69: 11.88 | C69: 25.60096032 | D69: 0.1655278379
A70: 67 | B70: 12.06 | C70: 25.63075533 | D70: 0.1818548587
A71: 68 | B71: 12.24 | C71: 25.66348921 | D71: 0.1984400328
A72: 69 | B72: 12.42 | C72: 25.69920841 | D72: 0.2152953965
A73: 70 | B73: 12.60 | C73: 25.73796158 | D73: 0.2324324591
A74: 71 | B74: 12.78 | C74: 25.77979943 | D74: 0.2498621174
A75: 72 | B75: 12.96 | C75: 25.82477461 | D75: 0.2675945642
A76: 73 | B76: 13.14 | C76: 25.87294163 | D76: 0.2856391918
A77: 74 | B77: 13.32 | C77: 25.92435668 | D77: 0.3040044901
A78: 75 | B78: 13.50 | C78: 25.97907749 | D78: 0.3226979399
A79: 76 | B79: 13.68 | C79: 26.03716312 | D79: 0.3417259035
A80: 77 | B80: 13.86 | C80: 26.09867378 | D80: 0.3610935128
A81: 78 | B81: 14.04 | C81: 26.16367062 | D81: 0.3808045548
A82: 79 | B82: 14.22 | C82: 26.23221544 | D82: 0.4008613595
A83: 80 | B83: 14.40 | C83: 26.30437048 | D83: 0.4212646878
A84: 81 | B84: 14.58 | C84: 26.38019812 | D84: 0.442013625
A85: 82 | B85: 14.76 | C85: 26.45976058 | D85: 0.4631054786
A86: 83 | B86: 14.94 | C86: 26.54311956 | D86: 0.4845356861
A87: 84 | B87: 15.12 | C87: 26.63033599 | D87: 0.5062977325
A88: 85 | B88: 15.30 | C88: 26.72146958 | D88: 0.5283830811
A89: 86 | B89: 15.48 | C89: 26.81657853 | D89: 0.5507811203
A90: 87 | B90: 15.66 | C90: 26.91571913 | D90: 0.5734791284
A91: 88 | B91: 15.84 | C91: 27.01894538 | D91: 0.5964622583
A92: 89 | B92: 16.02 | C92: 27.12630858 | D92: 0.6197135455
A93: 90 | B93: 16.20 | C93: 27.23785702 | D93: 0.6432139398
A94: 91 | B94: 16.38 | C94: 27.35363553 | D94: 0.6669423621
A95: 92 | B95: 16.56 | C95: 27.47368516 | D95: 0.6908757882
A96: 93 | B96: 16.74 | C96: 27.5980428 | D96: 0.7149893587
A97: 94 | B97: 16.92 | C97: 27.72674088 | D97: 0.7392565157
A98: 95 | B98: 17.10 | C98: 27.85980706 | D98: 0.7636491643
A99: 96 | B99: 17.28 | C99: 27.99726391 | D99: =(C100-C99)/dx -> 0.7881378574
A100: 97 | B100: 17.46 | C100: 28.13912872 | D100: 0.812692003
A101: 98 | B101: 17.64 | C101: 28.28541328 | D101: 0.8372800885
A102: 99 | B102: 17.82 | C102: 28.4361237 | D102: 0.8618699206
A103: 100 | B103: 18.00 | C103: 28.59126028 | D103: -158.8403349

Sheet Sheet3
A1: =xMin -> 0 | B1: =9 -> 9
A2: =A1+dx -> 0.18 | B2: =9 -> 9
A3: 0.36 | B3: =9 -> 9
A4: 0.54 | B4: =9 -> 9
A5: 0.72 | B5: =9 -> 9
A6: 0.9 | B6: =9 -> 9
A7: 1.08 | B7: =9 -> 9
A8: 1.26 | B8: =9 -> 9
A9: 1.44 | B9: =9 -> 9
A10: 1.62 | B10: =9 -> 9
A11: 1.8 | B11: =9 -> 9
A12: 1.98 | B12: =9 -> 9
A13: 2.16 | B13: =9 -> 9
A14: 2.34 | B14: =9 -> 9
A15: 2.52 | B15: =9 -> 9
A16: 2.7 | B16: =9 -> 9
A17: 2.88 | B17: =9 -> 9
A18: 3.06 | B18: =9 -> 9
A19: 3.24 | B19: =9 -> 9
A20: 3.42 | B20: =9 -> 9
A21: 3.6 | B21: =9 -> 9
A22: 3.78 | B22: =9 -> 9
A23: 3.96 | B23: =9 -> 9
A24: 4.14 | B24: =9 -> 9
A25: 4.32 | B25: =9 -> 9
A26: 4.5 | B26: =9 -> 9
A27: 4.68 | B27: =9 -> 9
A28: 4.86 | B28: =9 -> 9
A29: 5.04 | B29: =9 -> 9
A30: 5.22 | B30: =9 -> 9
A31: 5.4 | B31: =9 -> 9
A32: 5.58 | B32: =9 -> 9
A33: 5.76 | B33: =9 -> 9
A34: 5.94 | B34: =9 -> 9
A35: 6.12 | B35: =9 -> 9
A36: 6.3 | B36: =9 -> 9
A37: 6.48 | B37: =9 -> 9
A38: 6.66 | B38: =9 -> 9
A39: 6.84 | B39: =9 -> 9
A40: 7.02 | B40: =9 -> 9
A41: 7.2 | B41: =9 -> 9
A42: 7.38 | B42: =9 -> 9
A43: 7.56 | B43: =9 -> 9
A44: 7.74 | B44: =9 -> 9
A45: 7.92 | B45: =9 -> 9
A46: 8.1 | B46: =9 -> 9
A47: 8.28 | B47: =9 -> 9
A48: 8.46 | B48: =9 -> 9
A49: 8.64 | B49: =9 -> 9
A50: 8.82 | B50: =9 -> 9
A51: 9 | B51: =9 -> 9
A52: 9.18 | B52: =9 -> 9
A53: 9.36 | B53: =9 -> 9
A54: 9.54 | B54: =9 -> 9
A55: 9.72 | B55: =9 -> 9
A56: 9.9 | B56: =9 -> 9
A57: 10.08 | B57: =9 -> 9
A58: 10.26 | B58: =9 -> 9
A59: 10.44 | B59: =9 -> 9
A60: 10.62 | B60: =9 -> 9
A61: 10.8 | B61: =9 -> 9
A62: 10.98 | B62: =9 -> 9
A63: 11.16 | B63: =9 -> 9
A64: 11.34 | B64: =9 -> 9
A65: 11.52 | B65: =9 -> 9
A66: =A65+dx -> 11.7 | B66: =9 -> 9
A67: 11.88 | B67: =9 -> 9
A68: 12.06 | B68: =9 -> 9
A69: 12.24 | B69: =9 -> 9
A70: 12.42 | B70: =9 -> 9
A71: 12.6 | B71: =9 -> 9
A72: 12.78 | B72: =9 -> 9
A73: 12.96 | B73: =9 -> 9
A74: 13.14 | B74: =9 -> 9
A75: 13.32 | B75: =9 -> 9
A76: 13.5 | B76: =9 -> 9
A77: 13.68 | B77: =9 -> 9
A78: 13.86 | B78: =9 -> 9
A79: 14.04 | B79: =9 -> 9
A80: 14.22 | B80: =9 -> 9
A81: 14.4 | B81: =9 -> 9
A82: 14.58 | B82: =9 -> 9
A83: 14.76 | B83: =9 -> 9
A84: 14.94 | B84: =9 -> 9
A85: 15.12 | B85: =9 -> 9
A86: 15.3 | B86: =9 -> 9
A87: 15.48 | B87: =9 -> 9
A88: 15.66 | B88: =9 -> 9
A89: 15.84 | B89: =9 -> 9
A90: 16.02 | B90: =9 -> 9
A91: 16.2 | B91: =9 -> 9
A92: 16.38 | B92: =9 -> 9
A93: 16.56 | B93: =9 -> 9
A94: 16.74 | B94: =9 -> 9
A95: 16.92 | B95: =9 -> 9
A96: 17.1 | B96: =9 -> 9
A97: 17.28 | B97: =9 -> 9
A98: 17.46 | B98: =9 -> 9
A99: 17.64 | B99: =9 -> 9
A100: 17.82 | B100: =9 -> 9
A101: 18 | B101: =9 -> 9
A102: 18.18 | B102: =9 -> 9
A103: 18.36 | B103: =9 -> 9
A104: 18.54 | B104: =9 -> 9
A105: 18.72 | B105: =9 -> 9
A106: 18.9 | B106: =9 -> 9
A107: 19.08 | B107: =9 -> 9
A108: 19.26 | B108: =9 -> 9
A109: 19.44 | B109: =9 -> 9
A110: 19.62 | B110: =9 -> 9
A111: 19.8 | B111: =9 -> 9
A112: 19.98 | B112: =9 -> 9
A113: 20.16 | B113: =9 -> 9
A114: 20.34 | B114: =9 -> 9
A115: 20.52 | B115: =9 -> 9
A116: 20.7 | B116: =9 -> 9
A117: 20.88 | B117: =9 -> 9
A118: 21.06 | B118: =9 -> 9
A119: 21.24 | B119: =9 -> 9
A120: 21.42 | B120: =9 -> 9
A121: 21.6 | B121: =9 -> 9
A122: 21.78 | B122: =9 -> 9
A123: 21.96 | B123: =9 -> 9
A124: 22.14 | B124: =9 -> 9
A125: 22.32 | B125: =9 -> 9
A126: 22.5 | B126: =9 -> 9
A127: 22.68 | B127: =9 -> 9
A128: 22.86 | B128: =9 -> 9
A129: 23.04 | B129: =9 -> 9
A130: =A129+dx -> 23.22 | B130: =9 -> 9
A131: 23.4 | B131: =9 -> 9
A132: 23.58 | B132: =9 -> 9
A133: 23.76 | B133: =9 -> 9
A134: 23.94 | B134: =9 -> 9
A135: 24.12 | B135: =9 -> 9
A136: 24.3 | B136: =9 -> 9
A137: 24.48 | B137: =9 -> 9
A138: 24.66 | B138: =9 -> 9
A139: 24.84 | B139: =9 -> 9
A140: 25.02 | B140: =9 -> 9
A141: 25.2 | B141: =9 -> 9
A142: 25.38 | B142: =9 -> 9
A143: 25.56 | B143: =9 -> 9
A144: 25.74 | B144: =9 -> 9
A145: 25.92 | B145: =9 -> 9
A146: 26.1 | B146: =9 -> 9
A147: 26.28 | B147: =9 -> 9
A148: 26.46 | B148: =9 -> 9
A149: 26.64 | B149: =9 -> 9
A150: 26.82 | B150: =9 -> 9
A151: 27 | B151: =9 -> 9
A152: 27.18 | B152: =9 -> 9
A153: 27.36 | B153: =9 -> 9
A154: 27.54 | B154: =9 -> 9
A155: 27.72 | B155: =9 -> 9
A156: 27.9 | B156: =9 -> 9
A157: 28.08 | B157: =9 -> 9
A158: 28.26 | B158: =9 -> 9
A159: 28.44 | B159: =9 -> 9
A160: 28.62 | B160: =9 -> 9
A161: 28.8 | B161: =9 -> 9
A162: 28.98 | B162: =9 -> 9
A163: 29.16 | B163: =9 -> 9
A164: 29.34 | B164: =9 -> 9
A165: 29.52 | B165: =9 -> 9
A166: 29.7 | B166: =9 -> 9
A167: 29.88 | B167: =9 -> 9
A168: 30.06 | B168: =9 -> 9
A169: 30.24 | B169: =9 -> 9
A170: 30.42 | B170: =9 -> 9
A171: 30.6 | B171: =9 -> 9
A172: 30.78 | B172: =9 -> 9
A173: 30.96 | B173: =9 -> 9
A174: 31.14 | B174: =9 -> 9
A175: 31.32 | B175: =9 -> 9
A176: 31.5 | B176: =9 -> 9
A177: 31.68 | B177: =9 -> 9
A178: 31.86 | B178: =9 -> 9
A179: 32.04 | B179: =9 -> 9
A180: 32.22 | B180: =9 -> 9
A181: 32.4 | B181: =9 -> 9
A182: 32.58 | B182: =9 -> 9
A183: 32.76 | B183: =9 -> 9
A184: 32.94 | B184: =9 -> 9
A185: 33.12 | B185: =9 -> 9
A186: 33.3 | B186: =9 -> 9
A187: 33.48 | B187: =9 -> 9
A188: 33.66 | B188: =9 -> 9
A189: 33.84 | B189: =9 -> 9
A190: 34.02 | B190: =9 -> 9
A191: 34.2 | B191: =9 -> 9
A192: 34.38 | B192: =9 -> 9
A193: 34.56 | B193: =9 -> 9
A194: =A193+dx -> 34.74 | B194: =9 -> 9
A195: 34.92 | B195: =9 -> 9
A196: 35.1 | B196: =9 -> 9
A197: 35.28 | B197: =9 -> 9
A198: 35.46 | B198: =9 -> 9
A199: 35.64 | B199: =9 -> 9
A200: 35.82 | B200: =9 -> 9
... 803 more rows
